Cogmind - Beta 16 @@@ ROGUE MODE // 2026.01.28 @ 11:46:57 Player: winnking222 Result: Self-destructed Performance ------------- Evolutions (5) 2500 Regions Visited (16) 3200 Robots Destroyed (92) 460 Value Destroyed (2911) 2911 Prototype IDs (241) 4820 Alien Tech Used (0) 0 Bonus (3845) 3845 TOTAL SCORE: 17736 Bonus ------- High Alert Combat Kills 115 Follower Combat Kills 142 Aligned with FarCom 300 Met Data Miner 300 Used Data Conduit 3000 Friendly Fire -12 Cogmind --------- Core Integrity 152/1000 Matter 300/300 Energy 100/100 System Corruption 0% Temperature Cool (0) Movement Core (50) Location -5/Extension Parts ------- > --- POWER (1) -------- (None) > --- PROPULSION (5) --- (None) > --- UTILITY (9) ------ Advanced Signal Interpreter Makeshift Terrain Scan Processor System Mapper Deep Network Scanner > --- WEAPON (2) ------- (None) > --- INVENTORY (5) ---- Firepult Autogun Autogun Improved Remote Datajack Peak State ------------ > --- POWER ------------ Light Nuclear Core > --- PROPULSION ------- VTOL Module VTOL Module VTOL Module Nuclear Pulse Thruster Field Propulsion Drive > --- UTILITY ---------- Machine Analyzer Advanced Signal Interpreter Makeshift Terrain Scan Processor Advanced Terrain Scan Processor Phase Shifter Hardened Light Armor Plating Hardened Light Armor Plating System Mapper Deep Network Scanner > --- WEAPON ----------- Firepult > --- INVENTORY -------- Autogun Improved Remote Datajack CR-A16's Pointy Stick [Rating: 85] Favorites ----------- Power Ion Engine Engine Ion Engine Power Core Light Nuclear Core Propulsion Light Treads Treads Light Treads Hover Unit Antigrav System Flight Unit Xenon Bombardment Thruster Utility Improved Heat Sink Device Improved Heat Sink Storage Large Storage Unit Processor Advanced Terrain Scan Processor Hackware Hacking Suite Protection Hardened Light Armor Plating Weapon Heavy Assault Rifle Energy Gun Heavy EM Shotgun Energy Cannon Plasma Cannon Ballistic Gun Heavy Assault Rifle Ballistic Cannon Mini Assault Cannon Special Weapon Mining Laser Slashing Weapon Greatsword Piercing Weapon CR-A16's Pointy Stick Special Melee Weapon Datajack Build | -11 -10 -10 -10 -9 -8 -7 -7 -7 -6 -6 -6 -6 -6 -5 -5 -5 ------- Run | Yrd Mat Min Exi Min Mat Fac Low Zio Pro Fac Low Low Dat Pro Fac Ext Slots Evolved 10 | . . . . . 4 2 . . . 2 . . . . 2 . Power . | . . . . . . . . . . . . . . . . . Propulsion 3 | . . . . . . 2 . . . 1 . . . . . . Utility 7 | . . . . . 4 . . . . 1 . . . . 2 . Weapon . | . . . . . . . . . . . . . . . . . Parts Attached 112 | 7 8 3 3 1 32 17 . 3 . 10 2 3 . 5 3 15 Power 11 | 1 1 1 . . 4 . . . . 2 . . . 1 . 1 Engine 7 | 1 1 1 . . 2 . . . . 2 . . . . . . Core 4 | . . . . . 2 . . . . . . . . 1 . 1 Reactor . | . . . . . . . . . . . . . . . . . Propulsion 29 | 2 1 . 2 . 7 4 . . . 2 . 1 . 3 2 5 Treads 12 | 2 1 . 2 . 7 . . . . . . . . . . . Leg . | . . . . . . . . . . . . . . . . . Wheel . | . . . . . . . . . . . . . . . . . Hover 2 | . . . . . . . . . . . . . . 2 . . Flight 15 | . . . . . . 4 . . . 2 . 1 . 1 2 5 Utility 43 | 2 3 . 1 . 10 10 . 3 . 5 2 2 . 1 1 3 Device 18 | 1 2 . . . 7 4 . . . 2 1 . . . . 1 Storage 4 | 1 1 . 1 . 1 . . . . . . . . . . . Processor 7 | . . . . . . 3 . . . 1 1 2 . . . . Hackware 8 | . . . . . . 2 . 3 . 1 . . . 1 1 . Protection 6 | . . . . . 2 1 . . . 1 . . . . . 2 Artifact . | . . . . . . . . . . . . . . . . . Weapon 29 | 2 3 2 . 1 11 3 . . . 1 . . . . . 6 Energy Gun 2 | . 1 . . . 1 . . . . . . . . . . . Energy Cannon 9 | . . . . . 7 1 . . . . . . . . . 1 Ballistic Gun 13 | 2 2 1 . 1 2 . . . . . . . . . . 5 Ballistic Cannon 1 | . . . . . 1 . . . . . . . . . . . Launcher . | . . . . . . . . . . . . . . . . . Special Weapon 1 | . . 1 . . . . . . . . . . . . . . Impact Weapon . | . . . . . . . . . . . . . . . . . Slashing Weapon 1 | . . . . . . 1 . . . . . . . . . . Piercing Weapon 1 | . . . . . . . . . . 1 . . . . . . Special Melee Weapon 1 | . . . . . . 1 . . . . . . . . . . Unidentified Prototypes 8 | . 1 . . . 3 1 . . . 1 . . . 1 1 . Parts Lost 37 | . 2 . . . 8 2 . . 2 1 1 2 . 1 . 18 Power 5 | . . . . . 2 1 . . . . . . . . . 2 Propulsion 17 | . 1 . . . 2 1 . . 1 1 1 1 . 1 . 8 Utility 12 | . 1 . . . 3 . . . 1 . . 1 . . . 6 Weapon 3 | . . . . . 1 . . . . . . . . . . 2 Highest Loss Streak 11 | . 1 . . . 5 1 . . 1 1 1 2 . 1 . 11 To Critical Strikes . | . . . . . . . . . . . . . . . . . Average Backups 11 | 5 8 14 14 13 20 5 4 3 4 3 3 3 4 4 3 3 Power 1 | . 1 2 2 3 3 . . . . . . . . . . . Propulsion 1 | 3 2 3 1 1 4 . . . . . . . . . . . Utility 3 | . 1 4 4 5 6 2 3 2 2 2 2 3 3 2 1 . Weapon 3 | . 2 3 4 3 5 1 1 1 2 1 1 . 1 1 2 2 Tool/Special . | . . . . . . . . . . . . . . . . . Unused Backups 36 | . 5 1 1 . 12 12 . 1 . . . . 1 1 . 2 Power 3 | . . . . . . 3 . . . . . . . . . . Propulsion 5 | . 4 . . . . 1 . . . . . . . . . . Utility 11 | . . 1 1 . 3 2 . 1 . . . . 1 1 . 1 Weapon 16 | . 1 . . . 9 6 . . . . . . . . . . Tool/Special 1 | . . . . . . . . . . . . . . . . 1 Average Slot Usage (%) 85 | . 98 100 74 96 93 87 76 75 69 54 66 53 66 80 77 65 Engine 6 | . 14 14 14 14 6 . . . . . . . . . . . Core 1 | . . . . . 2 5 . . . . . . . 5 5 3 Treads 14 | . 28 28 28 28 17 1 . . . . . . . . . . Flight 6 | . . . . . . 27 23 23 19 10 13 7 13 10 16 15 Device 19 | . 12 14 14 14 35 18 7 9 15 14 20 13 13 13 11 2 Storage 7 | . 14 14 14 14 9 . . . . . . . . . . . Processor 5 | . . . . . . 6 15 12 7 12 19 20 26 26 23 21 Hackware 4 | . . . . . . 14 15 15 15 13 6 6 6 6 9 11 Protection 2 | . . . . . 4 2 7 7 4 . . . . . . 3 Energy Cannon 3 | . . . . . 13 2 . . . . . . . . . . Ballistic Gun 10 | . 28 26 3 24 4 . . . . . . . . . . 4 Slashing Weapon 1 | . . . . . . 5 7 7 7 2 . . . . . . Peak Build Rating 85 | 7 10 12 12 15 38 59 41 41 41 43 41 51 41 64 82 85 Average Rating 27 | 5 9 11 9 13 28 46 41 40 38 32 36 31 40 58 73 60 On Entrance 32 | . 7 10 12 10 15 37 41 41 41 35 41 37 40 41 62 80 Avg Prop Armor Cover (%) 7 | . . . . . . 4 3 3 4 8 7 12 . 19 19 . Naked Turns . | . . . . . . . . . . . . . . . . . Heaviest Build 106 | 13 31 33 47 53 106 106 11 14 14 10 8 6 5 10 10 22 Greatest Support 40 | 40 40 40 40 40 40 40 14 14 14 14 14 15 15 22 34 34 Greatest Overweight (x) 5 | . . . 1 1 5 2 . . 4 . . 1 . . . 1 Average Overweight (x) . | . . . . 1 1 . . . . . . . . . . . Largest Inventory Capacity 25 | 8 15 15 20 20 25 25 5 5 5 5 5 5 5 5 5 5 Average Capacity 13 | 7 11 15 15 20 22 6 5 5 5 5 5 5 5 5 5 5 Most Carried 25 | 7 11 15 16 16 25 24 5 5 5 5 5 5 5 5 5 5 Average Carried 11 | 5 8 14 15 14 21 6 5 4 5 4 4 4 4 4 4 4 Final Capacity 25 | 8 15 15 20 20 25 5 5 5 5 5 5 5 5 5 5 5 Final Carried 24 | 7 11 15 16 16 24 5 5 5 5 5 5 5 5 5 4 5 Class Distribution -------------------- 44% | Mutant 19% | Scavenger-Mutant 13% | Hacker-Mutant 8% | Scout 5% | Hacker-Ninja 5% | Hacker-Scout Dominant Class ---------------- Mutant | -10/Materials Mutant | -10/Mines Mutant | -10/Exiles Mutant | -9/Mines Scavenger-Mutant | -8/Materials Hacker-Ninja | -7/Factory Hacker-Mutant | -7/Lower Caves Hacker-Mutant | -7/Zion Hacker-Mutant | -6/Proximity Caves Hacker-Ninja | -6/Factory Scout | -6/Lower Caves Scout | -6/Lower Caves Scout | -6/Data Miner Scavenger-Scout | -5/Proximity Caves Hacker-Scout | -5/Factory Hacker-Mutant | -5/Extension Resources | -11 -10 -10 -10 -9 -8 -7 -7 -7 -6 -6 -6 -6 -6 -5 -5 -5 ----------- Run | Yrd Mat Min Exi Min Mat Fac Low Zio Pro Fac Low Low Dat Pro Fac Ext Matter Collected 2299 | 304 222 351 . 152 451 139 64 46 . 20 82 68 . 60 . 340 Remotely . | . . . . . . . . . . . . . . . . . Salvage Created 3768 | 165 505 397 . 99 2007 39 . . . 68 . 48 25 60 . 355 Parts 203 | 11 33 19 . 8 93 4 . . . 9 . 1 2 5 . 18 Haulers Intercepted 6 | . . . . . 6 . . . . . . . . . . . Recyclers Shooed 1 | . . . . . . . . . . 1 . . . . . . Parts Field Recycled . | . . . . . . . . . . . . . . . . . Retrieved Matter . | . . . . . . . . . . . . . . . . . Parts Self-Destructed 4 | . . . . . . . . . . . . 2 . 2 . . Prevented . | . . . . . . . . . . . . . . . . . Parts Restored . | . . . . . . . . . . . . . . . . . Kills | -11 -10 -10 -10 -9 -8 -7 -7 -7 -6 -6 -6 -6 -6 -5 -5 -5 ------- Run | Yrd Mat Min Exi Min Mat Fac Low Zio Pro Fac Low Low Dat Pro Fac Ext Combat Hostiles Destroyed 69 | . 11 11 . 2 34 . . . . . . 2 . 1 . 8 Melee 3 | . . . . . . . . . . . . . . 1 . 2 Guns 33 | . 11 11 . 2 5 . . . . . . . . . . 4 Cannons 28 | . . . . . 26 . . . . . . . . . . 2 AOE 2 | . . . . . . . . . . . . 2 . . . . Classes Destroyed 14 | 2 3 1 . 1 6 . . . . . . . . 1 . . Worker 4 | . . . . 1 2 1 . . . . . . . . . . Builder 3 | . . . . . 1 . . . . 2 . . . . . . Tunneler 4 | 4 . . . . . . . . . . . . . . . . Hauler 6 | . . . . . 6 . . . . . . . . . . . Recycler 2 | 1 1 . . . . . . . . . . . . . . . Watcher 6 | . 2 . . . 1 1 . . . 1 . . . . . 1 Swarmer 14 | . 3 . . . 4 . . . . . . 2 . . . 5 Grunt 40 | . 8 8 . 2 20 . . . . . . . . . . 2 Brawler 1 | . . . . . 1 . . . . . . . . . . . Protector 1 | . . . . . 1 . . . . . . . . . . . Sentry 7 | . . . . . 6 . . . . . . . . . . 1 Hunter 2 | . . . . . 2 . . . . . . . . . . . Programmer 1 | . . . . . . . . . . . . . . 1 . . Assembled 3 | . . 3 . . . . . . . . . . . . . . Best Kill Streak 5 | 2 5 4 . 2 5 1 . . . 3 . 2 1 1 . 3 Combat Bots Only 5 | . 5 4 . 1 3 . . . . . . 2 . 1 . 3 Max Kills in Single Turn 2 | 1 1 1 . 1 2 1 . . . 1 . 2 1 1 . 1 Gunslinging . | . . . . . . . . . . . . . . . . . Exploded 2 | . . . . . . . . . . . . 2 . . . . Melee 1 | . . . . . . . . . . . . . . 1 . 1 Uniques/NPCs Destroyed 1 | . . . . . . . . . . . . . 1 . . . Data Miner (-6/Data Miner) Combat | -11 -10 -10 -10 -9 -8 -7 -7 -7 -6 -6 -6 -6 -6 -5 -5 -5 -------- Run | Yrd Mat Min Exi Min Mat Fac Low Zio Pro Fac Low Low Dat Pro Fac Ext Hostile Shots Fired 576 | . 67 47 . 8 181 14 . . 24 29 2 28 2 23 7 144 Missed 206 | . 19 12 . 2 40 8 . . 15 18 . 15 1 15 4 57 Hits 370 | . 48 35 . 6 141 6 . . 9 11 2 13 1 8 3 87 Melee 7 | . . 5 . . 2 . . . . . . . . . . . Projectile 363 | . 48 30 . 6 139 6 . . 9 11 2 13 1 8 3 87 Critical Strikes 11 | . 2 . . . 4 2 . . . . . . . . . 3 Damage Taken 6025 | . 572 381 . 49 2008 306 . . 186 164 30 231 48 127 65 1858 Core 1551 | . 112 72 . . 214 . . . 40 45 14 130 48 28 46 802 Absorbed by Shields 314 | . 56 143 . 18 97 . . . . . . . . . . . Regen/Repaired (Parts) 11 | . . . . . . 11 . . . . . . . . . . Core Remaining (%) 69 | 100 . . . 26 61 . . . 94 . . . . 68 . . Volleys Fired 260 | 17 47 41 . 10 117 1 . . . . . 2 . . . 25 Largest 2 | 2 2 2 . 2 2 1 . . . . . 1 . . . 2 Hottest 250 | 40 43 123 . 46 160 250 . . . . . 250 . . . 250 Shots Fired 509 | 34 93 81 1 20 232 1 . . . . . 2 . . . 45 Gun 307 | 34 93 79 1 20 40 . . . . . . . . . . 40 Cannon 200 | . . . . . 192 1 . . . . . 2 . . . 5 Launcher . | . . . . . . . . . . . . . . . . . Special 2 | . . 2 . . . . . . . . . . . . . . Kinetic 307 | 34 93 79 1 20 40 . . . . . . . . . . 40 Thermal 202 | . . 2 . . 192 1 . . . . . 2 . . . 5 Explosive . | . . . . . . . . . . . . . . . . . Electromagnetic . | . . . . . . . . . . . . . . . . . Robot Hit Streak 20 | 5 12 20 . 4 16 . . . . . . 2 . . . 5 Robot Miss Streak 5 | 5 3 3 . 2 4 . . . . . . 3 . . . 3 Penetration Max . | . . . . . . . . . . . . . . . . . Secondary Targets 1 | . . 1 . . . . . . . . . . . . . . Max Gunslinging Chain 1 | . . 1 . . . . . . . . . . . . . . Shots Hit Robots 346 | 17 60 50 . 11 158 1 . . . 7 . 2 1 1 . 38 Core Hits 154 | 8 30 19 . 5 67 1 . . . 2 . 4 . 1 . 17 Critical Kills 3 | . 2 . . . 1 . . . . . . . . . . . Critical Parts Destroyed 3 | . . 1 . 2 . . . . . . . . . . . . Critical Strikes 9 | . 2 1 . 2 1 . . . . . . . 1 . . 2 Meltdown 1 | . . . . . 1 . . . . . . . . . . . Destroy 5 | . 2 1 . 2 . . . . . . . . . . . . Impale 3 | . . . . . . . . . . . . . 1 . . 2 Melee Attacks 76 | . . . . . . 14 . 1 1 11 . . 20 6 3 20 Impact . | . . . . . . . . . . . . . . . . . Slashing 25 | . . . . . . 14 . 1 1 9 . . . . . . Piercing 51 | . . . . . . . . . . 2 . . 20 6 3 20 Sneak Attacks 5 | . . . . . . . . . . 3 . . 1 1 . . Combat Hostiles 1 | . . . . . . . . . . . . . . 1 . . Follow-up Attacks . | . . . . . . . . . . . . . . . . . Damage Inflicted 7294 | 134 631 712 . 209 3680 110 . . . 550 . 118 73 74 . 1003 Guns 2490 | 134 631 712 . 209 408 . . . . . . . . . . 396 Cannons 3306 | . . . . . 3175 . . . . . . 25 . . . 106 Explosions 238 | . . . . . 90 55 . . . . . 93 . . . . Melee 1253 | . . . . . . 55 . . . 550 . . 73 74 . 501 Ramming 7 | . . . . . 7 . . . . . . . . . . . Kinetic 2490 | 134 631 712 . 209 408 . . . . . . . . . . 396 Thermal 3454 | . . . . . 3175 55 . . . . . 118 . . . 106 Explosive . | . . . . . . . . . . . . . . . . . Electromagnetic 90 | . . . . . 90 . . . . . . . . . . . Impact . | . . . . . . . . . . . . . . . . . Slashing 605 | . . . . . . 55 . . . 550 . . . . . . Piercing 648 | . . . . . . . . . . . . . 73 74 . 501 Highest Corruption 6 | . 6 6 6 6 . . . . . . . . . . . . Average Corruption 5 | . 5 6 6 6 . . . . . . . . . . . . Corruption Purged . | . . . . . . . . . . . . . . . . . Corruption Blocked . | . . . . . . . . . . . . . . . . . Effects 87 | . 25 31 13 18 . . . . . . . . . . . . Message Errors 20 | . 7 8 2 3 . . . . . . . . . . . . Matter Fused 13 | . 4 6 1 2 . . . . . . . . . . . . Heat Flow Errors 14 | . 4 5 1 4 . . . . . . . . . . . . Energy Discharges 10 | . 1 3 3 3 . . . . . . . . . . . . Parts Fused 4 | . 1 1 . 2 . . . . . . . . . . . . Data Loss (minor) 11 | . 4 2 3 2 . . . . . . . . . . . . Data Loss (major) 3 | . 1 1 1 . . . . . . . . . . . . . Misfires 2 | . . 1 1 . . . . . . . . . . . . . Alerts 7 | . 2 2 1 2 . . . . . . . . . . . . Weapon Failures 3 | . 1 2 . . . . . . . . . . . . . . Overload Shots . | . . . . . . . . . . . . . . . . . Overflow Damage 324 | . . . . . 57 42 . . . 135 . . 86 . . 4 Projectiles 52 | . . . . . 52 . . . . . . . . . . . Explosions 47 | . . . . . 5 42 . . . . . . . . . . Melee 225 | . . . . . . . . . . 135 . . 86 . . 4 Knockbacks . | . . . . . . . . . . . . . . . . . Impact . | . . . . . . . . . . . . . . . . . Kinetic . | . . . . . . . . . . . . . . . . . Secondary . | . . . . . . . . . . . . . . . . . Self-Inflicted Damage 267 | . . . . . 27 215 . . . . . 25 . . . . Shots 10 | . . . . . 1 6 . . . . . 3 . . . . Rammed 2 | . . . . 1 1 . . . . . . . . . . . Targets Rammed 2 | . . . . 1 1 . . . . . . . . . . . Kicked . | . . . . . . . . . . . . . . . . . Crushed . | . . . . . . . . . . . . . . . . . Highest Temperature 455 | . 267 249 108 256 189 319 . . . . . 224 . . . 455 Average Temperature 73 | . 58 65 61 101 40 131 . . . . . 110 . . . 121 Received Heat Transfer 2133 | . 274 167 . 24 906 45 . . 45 12 . . . . 18 642 Effects 8 | . . 3 . . . 1 . . . . . . . . . 4 Shutdowns 1 | . . . . . . . . . . . . . . . . 1 Energy Bleed 4 | . . . . . . 1 . . . . . . . . . 3 Interference 3 | . . 3 . . . . . . . . . . . . . . Siege Activations . | . . . . . . . . . . . . . . . . . Martial Activations . | . . . . . . . . . . . . . . . . . Shielding Activations . | . . . . . . . . . . . . . . . . . Robots Disrupted . | . . . . . . . . . . . . . . . . . Combat Hostiles . | . . . . . . . . . . . . . . . . . Robots Corrupted . | . . . . . . . . . . . . . . . . . Combat Hostiles . | . . . . . . . . . . . . . . . . . Parts Fried . | . . . . . . . . . . . . . . . . . Impact Corruptions . | . . . . . . . . . . . . . . . . . Robots Melted 3 | . . . . . 3 . . . . . . . . . . . Combat Hostiles 3 | . . . . . 3 . . . . . . . . . . . Parts Melted 18 | . . . . . 16 . . . . . . 2 . . . . Heat Transferred 6531 | . . . . . 5611 50 . . . . . 720 . . . 150 Parts Sabotaged . | . . . . . . . . . . . . . . . . . Parts Stolen . | . . . . . . . . . . . . . . . . . Parts Stripped . | . . . . . . . . . . . . . . . . . Power Chain Reactions . | . . . . . . . . . . . . . . . . . Alert | -11 -10 -10 -10 -9 -8 -7 -7 -7 -6 -6 -6 -6 -6 -5 -5 -5 ------- Run | Yrd Mat Min Exi Min Mat Fac Low Zio Pro Fac Low Low Dat Pro Fac Ext Maximum Alert Level 2 | . . . . . 2 1 . . . . . . . . . . Low Security (%) 84 | 100 100 100 . 100 67 39 . . . 100 . . . . 100 100 Level 1 7 | . . . . . 7 60 . . . . . . . . . . Level 2 8 | . . . . . 24 . . . . . . . . . . . Level 3 . | . . . . . . . . . . . . . . . . . Level 4 . | . . . . . . . . . . . . . . . . . Level 5 . | . . . . . . . . . . . . . . . . . High Security . | . . . . . . . . . . . . . . . . . Max Security . | . . . . . . . . . . . . . . . . . Peak Influence 592 | 5 108 67 . 50 592 301 . . . 32 . . . . 32 122 Initial 252 | . 3 . . . . 252 . . . . . . . . 12 4 Average 103 | . 23 16 . 9 218 217 . . . 5 . . . . 12 41 Influence Increases 3176 | 25 317 225 . 120 1266 308 . . 60 84 45 115 20 75 51 465 Destroy 0b10 Robot/C 1460 | . 220 160 . 40 700 . . . . . . 40 20 20 . 260 Destroy 0b10 Robot/NC 135 | 25 15 . . 5 55 10 . . . 15 . . . . . 10 Destroy Leader 284 | . 54 20 . . 174 2 . . . 2 . . . 10 . 22 Allied During Kill 52 | . . . . . 8 . . . . . . . . . . 44 Successful Hack 139 | . 28 . . . 20 58 . . . 19 . . . . . 14 Disable Machine 90 | . . . . . 30 45 . . . 15 . . . . . . Anti-Garrison Action 150 | . . . . . 150 . . . . . . . . . . . Destroy Structure 101 | . . . . . 39 43 . . . 3 . . . . 6 10 Partial Spotted 30 | . . . . . . 15 . . . 15 . . . . . . Lose Combat Pursuer 735 | . . 45 . 75 90 135 . . 60 15 45 75 . 45 45 105 Influence Decreases 3151 | 20 322 225 . 120 711 585 154 124 60 78 51 80 55 55 60 451 Entered New Map 586 | . 2 . . . . 303 104 124 . . 3 . 35 . 8 7 Time Decay 2156 | 20 300 225 . 120 591 262 50 . 50 68 45 80 20 55 52 218 Lost Part 274 | . 20 . . . 80 20 . . 10 10 3 . . . . 131 Lost Ally 135 | . . . . . 40 . . . . . . . . . . 95 Squads Dispatched 15 | . 2 . . . 7 4 . . . 1 . . . . 1 . Investigation 6 | . . . . . 3 2 . . . 1 . . . . . . Extermination 2 | . . . . . . 2 . . . . . . . . . . Reinforcement 5 | . 2 . . . 2 . . . . . . . . . 1 . Assault 2 | . . . . . 2 . . . . . . . . . . . Garrison . | . . . . . . . . . . . . . . . . . Intercept . | . . . . . . . . . . . . . . . . . Searches Triggered . | . . . . . . . . . . . . . . . . . Construction Impeded . | . . . . . . . . . . . . . . . . . Haulers Reinforced . | . . . . . . . . . . . . . . . . . Active Scanning Responses . | . . . . . . . . . . . . . . . . . Cargo Convoy Interrupts . | . . . . . . . . . . . . . . . . . Stealth | -11 -10 -10 -10 -9 -8 -7 -7 -7 -6 -6 -6 -6 -6 -5 -5 -5 --------- Run | Yrd Mat Min Exi Min Mat Fac Low Zio Pro Fac Low Low Dat Pro Fac Ext Distress Signals 11 | . 3 . . . 5 . . . . . . . . . . 3 Communications Jammed . | . . . . . . . . . . . . . . . . . Distress Signals . | . . . . . . . . . . . . . . . . . Times Spotted 180 | . 19 15 . 6 66 14 . . 4 5 3 8 3 3 6 28 Peak Tracking Total 11 | . 5 3 . 3 11 5 . . 2 5 3 3 3 3 3 7 Tactical Retreats 34 | . . 3 . 4 4 5 . . 4 1 1 2 . 3 2 5 Traps | -11 -10 -10 -10 -9 -8 -7 -7 -7 -6 -6 -6 -6 -6 -5 -5 -5 ------- Run | Yrd Mat Min Exi Min Mat Fac Low Zio Pro Fac Low Low Dat Pro Fac Ext Traps Triggered 6 | . 2 . . . . 2 . . . 1 . . . . . 1 Indirectly . | . . . . . . . . . . . . . . . . . Trap Hack Attempts . | . . . . . . . . . . . . . . . . . Triggered . | . . . . . . . . . . . . . . . . . Disarmed . | . . . . . . . . . . . . . . . . . Reprogrammed 2 | . 2 . . . . . . . . . . . . . . . Reused . | . . . . . . . . . . . . . . . . . Traps Extracted . | . . . . . . . . . . . . . . . . . Installed . | . . . . . . . . . . . . . . . . . Triggered . | . . . . . . . . . . . . . . . . . Machines | -11 -10 -10 -10 -9 -8 -7 -7 -7 -6 -6 -6 -6 -6 -5 -5 -5 ---------- Run | Yrd Mat Min Exi Min Mat Fac Low Zio Pro Fac Low Low Dat Pro Fac Ext Machines Disabled 8 | . . . . . 3 3 . . . 1 . . . . . 1 Max in Single Turn 3 | . . . . . 2 3 . . . 1 . . . . . . Garrison Access 3 | . . . . . 1 1 . . . 1 . . . . . . Machines Repaired . | . . . . . . . . . . . . . . . . . Machines Dismantled . | . . . . . . . . . . . . . . . . . Machines Sabotaged . | . . . . . . . . . . . . . . . . . Overloaded Fab Kills . | . . . . . . . . . . . . . . . . . Hacking | -11 -10 -10 -10 -9 -8 -7 -7 -7 -6 -6 -6 -6 -6 -5 -5 -5 --------- Run | Yrd Mat Min Exi Min Mat Fac Low Zio Pro Fac Low Low Dat Pro Fac Ext Machines Accessed 44 | . 6 . 2 . 11 11 . . . 4 2 . 4 . . 4 Terminals 27 | . 6 . . . 9 6 . . . 2 . . . . . 4 Fabricators 3 | . . . . . . 2 . . . 1 . . . . . . Repair Stations 1 | . . . . . . 1 . . . . . . . . . . Recycling Units . | . . . . . . . . . . . . . . . . . Scanalyzers 3 | . . . . . 2 1 . . . . . . . . . . Garrison Access 2 | . . . . . . 1 . . . 1 . . . . . . Total Hacks 118 | . 15 . 2 . 26 27 . . . 9 8 . 26 . . 5 Successful 90 | . 11 . 2 . 14 18 . . . 7 8 . 26 . . 4 Failed 27 | . 4 . . . 11 9 . . . 2 . . . . . 1 Catastrophic 4 | . . . . . 3 1 . . . . . . . . . . Database Lockouts 1 | . . . . . 1 . . . . . . . . . . . Manual 54 | . 10 . 1 . 19 16 . . . 6 . . . . . 2 Terminals 66 | . 15 . . . 22 18 . . . 6 . . . . . 5 Fabricators 6 | . . . . . . 4 . . . 2 . . . . . . Repair Stations 2 | . . . . . . 2 . . . . . . . . . . Recycling Units . | . . . . . . . . . . . . . . . . . Scanalyzers 6 | . . . . . 4 2 . . . . . . . . . . Garrison Access 2 | . . . . . . 1 . . . 1 . . . . . . Terminal Hacks 46 | . 4 . 2 . 1 2 . . . . 8 . 26 . . 3 Record 19 | . . . 1 . . . . . . . 7 . 11 . . . Part Schematic 10 | . 2 . . . . . . . . . . . 8 . . . Robot Schematic 4 | . . . . . . . . . . . . . 4 . . . Prototype ID Bank 3 | . . . . . . . . . . . . . 3 . . . Open Door 4 | . . . . . . . . . . . 1 . . . . 3 Branch Access Points 1 | . . . . . 1 . . . . . . . . . . . Alert Level 1 | . . . . . . 1 . . . . . . . . . . Reprogram Traps 1 | . 1 . . . . . . . . . . . . . . . Hauler Manifests 2 | . 1 . . . . 1 . . . . . . . . . . Proto ID Catalog 1 | . . . 1 . . . . . . . . . . . . . Fabricator Hacks 3 | . . . . . . 1 . . . 2 . . . . . . Load Schematic 1 | . . . . . . . . . . 1 . . . . . . Build 2 | . . . . . . 1 . . . 1 . . . . . . Repair Station Hacks 2 | . . . . . . 2 . . . . . . . . . . Scan Component 1 | . . . . . . 1 . . . . . . . . . . Repair 1 | . . . . . . 1 . . . . . . . . . . Recycling Unit Hacks . | . . . . . . . . . . . . . . . . . Scanalyzer 4 | . . . . . 3 1 . . . . . . . . . . Retrieve Study 4 | . . . . . 3 1 . . . . . . . . . . Garrison Access Hacks 2 | . . . . . . 1 . . . 1 . . . . . . Seal Access 2 | . . . . . . 1 . . . 1 . . . . . . Unauthorized Hacks 33 | . 7 . . . 10 11 . . . 4 . . . . . 1 Terminals 32 | . 7 . . . 10 10 . . . 4 . . . . . 1 Botnet 15 | . 2 . . . 5 5 . . . 2 . . . . . 1 Skim 17 | . 5 . . . 5 5 . . . 2 . . . . . . Fabricators 1 | . . . . . . 1 . . . . . . . . . . Fabnet 1 | . . . . . . 1 . . . . . . . . . . Repair Stations . | . . . . . . . . . . . . . . . . . Recycling Units . | . . . . . . . . . . . . . . . . . Scanalyzers . | . . . . . . . . . . . . . . . . . Garrison Access . | . . . . . . . . . . . . . . . . . Data Cores Recovered . | . . . . . . . . . . . . . . . . . Used . | . . . . . . . . . . . . . . . . . Hacking Detections 25 | . 4 . . . 8 10 . . . 2 . . . . . 1 Full Trace Events 4 | . . . . . 2 1 . . . 1 . . . . . . Feedback Events . | . . . . . . . . . . . . . . . . . Feedback Blocked . | . . . . . . . . . . . . . . . . . Robot Schematics Acquired 7 | . . . . . . . . 3 . . . . 4 . . . Robots Built . | . . . . . . . . . . . . . . . . . Authchips . | . . . . . . . . . . . . . . . . . Time . | . . . . . . . . . . . . . . . . . Total Robot Build Rating . | . . . . . . . . . . . . . . . . . Part Schematics Acquired 26 | . 2 . . . . . . 16 . . . . 8 . . . Parts Built 4 | . . . . . . 2 . . . 2 . . . . . . Authchips 1 | . . . . . . . . . . 1 . . . . . . Time 100 | . . . . . . 58 . . . 42 . . . . . . Total Part Build Rating 22 | . . . . . . 14 . . . 8 . . . . . . Part Studies Acquired 4 | . . . . . 3 1 . . . . . . . . . . Parts Repaired 1 | . . . . . . 1 . . . . . . . . . . Time 54 | . . . . . . 54 . . . . . . . . . . Parts Recycled . | . . . . . . . . . . . . . . . . . Recycled Matter . | . . . . . . . . . . . . . . . . . Retrieved Matter . | . . . . . . . . . . . . . . . . . Retrieved Components . | . . . . . . . . . . . . . . . . . Parts Scanalyzed . | . . . . . . . . . . . . . . . . . Part Schematics Acquired . | . . . . . . . . . . . . . . . . . Parts Damaged . | . . . . . . . . . . . . . . . . . Bothacking | -11 -10 -10 -10 -9 -8 -7 -7 -7 -6 -6 -6 -6 -6 -5 -5 -5 ------------ Run | Yrd Mat Min Exi Min Mat Fac Low Zio Pro Fac Low Low Dat Pro Fac Ext Used RIF Installer . | . . . . . . . . . . . . . . . . . Robots Hacked 1 | . . . . . . . . . . . . . . . . 1 Non-combat . | . . . . . . . . . . . . . . . . . Combat 1 | . . . . . . . . . . . . . . . . 1 Robot Hacks Applied . | . . . . . . . . . . . . . . . . . Relay Couplers Released 2 | . . . . . 2 . . . . . . . . . . . Machine Destruction 2 | . . . . . 2 . . . . . . . . . . . Fabnet Peak Effective % 3 | . . . . . . . . . 3 3 3 3 3 1 1 1 Autooverrided 1 | . . . . . . . . . . . . . . . . 1 Robots Rewired 3 | . . . . . . . . . . . . . . . . 3 Allies Hacked . | . . . . . . . . . . . . . . . . . Hacks Repelled . | . . . . . . . . . . . . . . . . . Allies | -11 -10 -10 -10 -9 -8 -7 -7 -7 -6 -6 -6 -6 -6 -5 -5 -5 -------- Run | Yrd Mat Min Exi Min Mat Fac Low Zio Pro Fac Low Low Dat Pro Fac Ext Total Allies 10 | . . . . 2 . . . . . . . . . . . 8 Largest Group 4 | . . . . 2 2 . . . . . . . . . . 4 Highest-Rated Group 172 | . . . . 45 45 . . . . . . . . . . 172 Highest-Rated Ally 85 | . . . . 31 31 . . . . . . . . . . 85 Total Orders . | . . . . . . . . . . . . . . . . . Ally Attacks 64 | . . . . . 9 . . . . . . . . . . 55 Total Damage 1201 | . . . . . 95 . . . . . . . . . . 1106 Kills 8 | . . . . . 2 . . . . . . . . . . 6 Allies Corrupted . | . . . . . . . . . . . . . . . . . Allies Melted . | . . . . . . . . . . . . . . . . . Intel | -11 -10 -10 -10 -9 -8 -7 -7 -7 -6 -6 -6 -6 -6 -5 -5 -5 ------- Run | Yrd Mat Min Exi Min Mat Fac Low Zio Pro Fac Low Low Dat Pro Fac Ext Active Infowar (turns) 4193 | 43 446 . . . 1824 392 40 1 351 328 360 11 . 177 130 90 Sensors 370 | . . . . . . . . . . . 359 11 . . . . Terrain 1198 | . . . . . . 392 40 . 347 22 . . . 177 130 90 Structural 480 | . . . . . . . . . . 102 . . . 177 130 71 Seismic 2313 | 43 446 . . . 1824 . . . . . . . . . . . Machine Analysis 330 | . . . . . . . . . . 328 2 . . . . . ECM 20 | . . . . . . 14 . 1 4 1 . . . . . . Robot Analysis Total 154 | . . . . . . . . . . . . . 154 . . . Derelict Logs Recovered 10 | . . 1 . 2 . . 1 2 2 . . 1 . 1 . . Drone Launches . | . . . . . . . . . . . . . . . . . Drone Recoveries . | . . . . . . . . . . . . . . . . . Exploration | -11 -10 -10 -10 -9 -8 -7 -7 -7 -6 -6 -6 -6 -6 -5 -5 -5 ------------- Run | Yrd Mat Min Exi Min Mat Fac Low Zio Pro Fac Low Low Dat Pro Fac Ext Turns Passed 9817 | 149 1375 1089 428 606 2533 571 101 422 511 343 474 180 160 210 130 535 Spaces Moved 8208 | 61 665 425 232 231 889 1075 256 1017 585 466 443 346 166 382 266 703 Core 423 | 11 . . . . . . . . 27 . . 112 . . . 273 Treads 2507 | 50 665 425 232 231 889 15 . . . . . . . . . . Legs . | . . . . . . . . . . . . . . . . . Wheels . | . . . . . . . . . . . . . . . . . Hover 10 | . . . . . . . . . . . . . . 10 . . Flight 5268 | . . . . . . 1060 256 1017 558 466 443 234 166 372 266 430 Fastest Speed 26 | 50 160 160 160 240 200 31 37 37 37 37 37 37 44 44 36 26 Average Speed 85 | 140 160 160 169 240 219 35 37 37 46 38 37 44 44 47 41 41 Slowest Speed 360 | 160 160 160 240 240 360 240 37 37 250 40 40 100 44 60 47 119 Overloaded Moves . | . . . . . . . . . . . . . . . . . Propulsion Burnouts . | . . . . . . . . . . . . . . . . . Robots Hopped 13 | . . . . . . 9 . . . 2 . . . . . 2 Potential Cave-ins . | . . . . . . . . . . . . . . . . . Cave-ins Triggered . | . . . . . . . . . . . . . . . . . Exploration Rate (%) 56 | 4 97 48 59 63 81 39 44 84 84 15 59 48 81 57 13 86 Regions Visited 16 Branch Regions 11 Pre-discovered Areas 35 | . 3 . 1 1 . 1 . 2 . . . . 27 . . . Known Exits Taken 7 | . . . . 1 . 1 . . . . 1 1 1 1 1 . Unknown Exits Taken 9 | 1 1 1 1 . 1 . 1 1 1 1 . . . . . . Scrap Searched 18 | . . 1 . 1 . . 2 3 4 . 2 2 . 3 . . Spaces Dug 56 | . . . . . 1 42 . . 1 3 . . . 5 3 1 Terrain Destroyed 83 | . . . . . 28 42 . . 1 3 . . . 5 3 1 Melee 26 | . . . . . . 13 . . 1 3 . . . 5 3 1 Projectile 28 | . . . . . 28 . . . . . . . . . . . AOE 29 | . . . . . . 29 . . . . . . . . . . Terrain Rammed . | . . . . . . . . . . . . . . . . . Walls Destroyed . | . . . . . . . . . . . . . . . . . Machines Disabled . | . . . . . . . . . . . . . . . . . Actions | -11 -10 -10 -10 -9 -8 -7 -7 -7 -6 -6 -6 -6 -6 -5 -5 -5 --------- Run | Yrd Mat Min Exi Min Mat Fac Low Zio Pro Fac Low Low Dat Pro Fac Ext Total 10385 | 96 898 750 271 262 1253 1234 261 1061 819 604 752 371 212 398 280 863 Wait 1489 | . 152 274 27 17 134 96 6 33 234 112 306 13 23 . 3 59 Move 8167 | 60 664 424 231 230 888 1057 255 1016 584 461 442 345 165 381 265 699 Hop 12 | . . . . . . 8 . . . 2 . . . . . 2 Pick Up 103 | 12 14 6 3 2 42 7 . 2 . 2 1 1 2 1 2 6 Fast Attach 47 | 2 2 . . . 7 8 . 3 . 8 . 3 . 4 1 9 Attach 49 | 5 2 . . 2 15 8 . 1 . 2 1 3 . 2 3 5 Detach 10 | . . . 2 . . . . . . . . 2 . 2 1 3 Swap 39 | . 5 4 3 . 14 5 . . . 1 1 . . . . 6 Drop 111 | . 12 1 5 . 35 30 . 5 . 5 1 2 2 2 2 9 Fire 260 | 17 47 41 . 10 117 1 . . . . . 2 . . . 25 Melee 76 | . . . . . . 14 . 1 1 11 . . 20 6 3 20 Ram . | . . . . . . . . . . . . . . . . . Kick . | . . . . . . . . . . . . . . . . . Crush 2 | . . . . 1 1 . . . . . . . . . . . Escape Stasis 15 | . . . . . . . . . . . . . . . . 15 Rewire 5 | . . . . . . . . . . . . . . . . 5 Trap . | . . . . . . . . . . . . . . . . . Miscellaneous . | . . . . . . . . . . . . . . . . . Route ------- -11/Scrapyard -10/Materials (discovered 4 exits: [*Mat x3] / [*Min]) -10/Mines -10/Exiles -9/Mines -8/Materials (discovered 3 exits: *Fac x3) -7/Factory -7/Lower Caves -7/Zion (discovered 2 exits: Dee / [*Pro]) -6/Proximity Caves -6/Factory (discovered 2 exits: Fac / *Low) -6/Lower Caves -6/Lower Caves -6/Data Miner -5/Proximity Caves -5/Factory (discovered 2 exits: Fac / *Ext) -5/Extension (discovered 2 exits: *Fac / [*Cet]) History --------- Turn | Location | Event 8 | -11/Scrapyard | Discovered new exit (range 16) 150 | -11/Scrapyard | Entered Materials 303 | -10/Materials | Build established: Mutant 679 | -10/Materials | Discovered new exit (range 6) 825 | -10/Materials | Discovered new exit (range 9) 1030 | -10/Materials | Discovered new exit (range 8) 1145 | -10/Materials | Discovered new exit (range 12) 1241 | -10/Materials | Learned location of 1 exit from Storage 1344 | -10/Materials | Learned location of Mines (-9) 1407 | -10/Materials | Loaded intel: 12 trap records 1443 | -10/Materials | Learned Storage trap positions 1491 | -10/Materials | Learned location of 2 exits from Subcaves 1525 | -10/Materials | Entered Mines 1535 | -10/Mines | Learned Materials terminal intel 1554 | -10/Mines | Deemed a non-threat by the Exiles lab entrance 1554 | -10/Mines | Discovered new exit (range 5) 1738 | -10/Mines | Excavation squad dispatched 1738 | -10/Mines | A large section of the Mines collapsed 1867 | -10/Mines | Core integrity fell below 50% 2614 | -10/Mines | Entered Exiles 2653 | -10/Exiles | Met 8R-AWN 2702 | -10/Exiles | Met EX-HEX 2745 | -10/Exiles | Met EX-BIN 2768 | -10/Exiles | Aligned with FarCom system 2769 | -10/Exiles | Given EX-Vault access code 2806 | -10/Exiles | Opened EX-Vault 2818 | -10/Exiles | Found Firepult 2850 | -10/Exiles | Warned to stay clear of 0b10 Research branches 2873 | -10/Exiles | Exiles lab attacked by MAIN.C 2902 | -10/Exiles | Learned location of Zion (-7) 3000 | -10/Exiles | Discovered new exit (range 14) 3042 | -10/Exiles | Left Exiles lab with Firepult 3042 | -10/Exiles | Entered Mines 3112 | -9/Mines | Met a Derelict bent on vengeance 3443 | -9/Mines | Identified exit to Materials 3474 | -9/Mines | Found a damaged Exp. Sensor Array with a note attached 3484 | -9/Mines | Found Prototype Device 3648 | -9/Mines | Entered Materials 3648 | -8/Materials | Accompanied by 2 allies 3648 | -8/Materials | Evolved 4 slots: Utility x4 3649 | -8/Materials | Loaded intel: 12 terminal locations 3653 | -8/Materials | Led the pair of lost Derelicts to an unsafe place 4222 | -8/Materials | Discovered new exit (range 10) 4630 | -8/Materials | Discovered new exit (range 7) 4692 | -8/Materials | Build established: Scavenger-Mutant 5734 | -8/Materials | Lost 5 parts (1p1n2u1w) 6067 | -8/Materials | Central database locked down 6164 | -8/Materials | Discovered new exit (range 8) 6181 | -8/Materials | Entered Factory 6181 | -7/Factory | Evolved 2 slots: Propulsion x2 6316 | -7/Factory | Identified Exp. Sensor Array 6340 | -7/Factory | Fabricated Quantum Capacitor? 6380 | -7/Factory | Repaired Faulty Exp. Sensor Array 6512 | -7/Factory | Build established: Hacker-Ninja 6678 | -7/Factory | Identified exit to Lower Caves 6741 | -7/Factory | Learned location of 2 exits from Upper Caves 6752 | -7/Factory | Entered Lower Caves 6834 | -7/Lower Caves | Learned Factory stockpile data 6850 | -7/Lower Caves | A Derelict revealed a hidden shortcut to a safe place 6853 | -7/Lower Caves | Entered Zion 6879 | -7/Zion | Discovered new exit (range 15) 6901 | -7/Zion | Identified exit to Deep Caves 7011 | -7/Zion | Given A8's code to call for help 7045 | -7/Zion | Build established: Hacker-Mutant 7082 | -7/Zion | Learned location of Storage (-7) 7087 | -7/Zion | Learned Factory stockpile data 7178 | -7/Zion | Found CR-A16's Pointy Stick 7275 | -7/Zion | Entered Proximity Caves 7428 | -6/Proximity Caves | Spotted B-75 Beast 7608 | -6/Proximity Caves | Learned 8 Factory zone layouts 7629 | -6/Proximity Caves | Discovered new exit (range 12) 7633 | -6/Proximity Caves | Learned Factory terminal intel 7786 | -6/Proximity Caves | Entered Factory 7786 | -6/Factory | Evolved 2 slots: Propulsion x1, Utility x1 7787 | -6/Factory | Identified exit to Factory 7789 | -6/Factory | Loaded intel: 26 terminal locations 7983 | -6/Factory | Discovered new exit (range 4) 8017 | -6/Factory | Fabricated Xenon Bombardment Thruster? 8129 | -6/Factory | Entered Lower Caves 8221 | -6/Lower Caves | Entered an active Warlord outpost 8223 | -6/Lower Caves | Learned location of 1 exit from Factory 8223 | -6/Lower Caves | Learned location of 1 exit from Research 8223 | -6/Lower Caves | Learned Extension trap positions 8223 | -6/Lower Caves | Learned Armory trap positions 8223 | -6/Lower Caves | Learned Research emergency access door positions 8400 | -6/Lower Caves | Build established: Scout 8539 | -6/Lower Caves | Discovered new exit (range 8) 8603 | -6/Lower Caves | Identified exit to Lower Caves 8603 | -6/Lower Caves | Entered another Lower Caves area 8663 | -6/Lower Caves | Learned Factory stockpile data 8731 | -6/Lower Caves | Spotted B-75 Beast 8771 | -6/Lower Caves | Discovered new exit (range 12) 8772 | -6/Lower Caves | Encountered a Warlord checkpoint 8776 | -6/Lower Caves | Identified exit to Data Miner 8783 | -6/Lower Caves | Entered Data Miner 8783 | -6/Data Miner | Discovered new exit (range 6) 8792 | -6/Data Miner | Met Data Miner 8799 | -6/Data Miner | Learned location of Section 7 (-2) 8799 | -6/Data Miner | Acquired the access code to Warlord's prototype stash 8808 | -6/Data Miner | Received God Mode back door access code from Data Miner 8833 | -6/Data Miner | Destroyed Data Miner 8839 | -6/Data Miner | Found Prototype Hackware 8840 | -6/Data Miner | Found Prototype Hackware 8844 | -6/Data Miner | Interfaced with the Data Conduit 8943 | -6/Data Miner | Identified exit to Proximity Caves 8943 | -6/Data Miner | Entered Proximity Caves 9010 | -5/Proximity Caves | Learned 4 Factory zone layouts 9036 | -5/Proximity Caves | Identified System Mapper 9078 | -5/Proximity Caves | Attracted the attention of an 0b10 checkpoint 9143 | -5/Proximity Caves | Discovered exit to Factory (range 7) 9153 | -5/Proximity Caves | Entered Factory 9153 | -5/Factory | Evolved 2 slots: Utility x2 9154 | -5/Factory | Identified exit to Factory 9157 | -5/Factory | Loaded intel: 247 machine locations 9187 | -5/Factory | Identified Deep Network Scanner 9275 | -5/Factory | Spotted B-75 Beast 9278 | -5/Factory | Discovered new exit (range 16) 9283 | -5/Factory | Identified exit to Extension 9283 | -5/Factory | Entered Extension 9284 | -5/Extension | Loaded intel: 21 trap records 9285 | -5/Extension | Loaded intel: 32 machine locations 9317 | -5/Extension | Rescued a captive Derelict 9342 | -5/Extension | Rescued a captive Derelict 9343 | -5/Extension | Rescued a captive Derelict 9392 | -5/Extension | Rescued a captive Derelict 9404 | -5/Extension | Lost 3 parts (1n2u) 9445 | -5/Extension | Lost 4 allies 9520 | -5/Extension | Lost 3 parts (1p2n) 9617 | -5/Extension | Spotted B-75 Beast 9632 | -5/Extension | Spotted B-75 Beast 9634 | -5/Extension | Local machine network offline 9687 | -5/Extension | Core integrity fell below 50% 9722 | -5/Extension | Lost 11 parts (1p5n3u2w) 9730 | -5/Extension | Discovered new exit (range 15) 9730 | -5/Extension | Discovered exit to Factory (range 15) 9765 | -5/Extension | Core integrity fell below 20% 9818 | -5/Extension | Self-destructed Last Messages --------------- 09774_ Triggered Stasis Trap. 09774_ A bubble of rippling energy engulfs the area. 09774_ Field strength at 94. 09774_ Field strength at 88. 09775_ Field strength at 82. 09776_ Field strength at 76. 09777_ Field strength at 70. 09778_ Field strength at 64. 09779_ Field strength at 58. 09780_ Field strength at 52. 09781_ Field strength at 46. 09782_ Field strength at 40. 09783_ Field strength at 34. 09784_ Field strength at 28. 09785_ Field strength at 22. 09786_ Field strength at 16. 09787_ Field strength at 10. 09788_ Field strength at 4. 09789_ Stasis field depleted. [Achievement: Collector] Map ----- +----------------------------------------------------+ | | | | | | | | | | | | | | | | | | | ?????????????????????????????????????????????????? | | ?????????????????????????????????????????????????? | | ??????????????????????????????????#??????????????? | | ????????????????????????????????? #??????????????? | | ???????????????################## "??????????????? | | ???????????????# "????????####### | | ???????????????# ############## #T#????????# # | | ???????????????# #????????????# ############ | | ???????????????# #????????????# Y Y | | ???????????????# #????????????############## | | #######????????# ####??????????????????????# # | | ^ #????????# #?##"#?????????????????##/#### | | ^ #????????# #?#T #??????????????????T ??? | | ##### #????????# #### #########??????????#"##?? | | ????? #????????# += ]! #???????????????? | | ????? #????????# # #???????????????? | | ????# #????????# @# ! #???????????????? | | ????# #????????# + #???????????????? | | ????# #????????# #### !#???????????????? | | ????# #????????# "T" #??# ! #???????????????? | | ##### #????????# #??########???????????????? | | #????????# #?????????????????????????? | | #????????# #####+#?????????????????????????? | | #????????# #???????????????????????????????? | | #????????# #?g?????????????????????????????? | | ##### #????????# /???????????????????????????????? | | ????# #????????# #?g?????????????????????????????? | | ????# #????????#%#???????????????????????????????? | | ????# #????????#^#???????????????????????????????? | | ????# #????????#^#???????????????????????????????? | | ????#%##########%#???????????????????????????????? | | ??### ### ## ### ###?????????????????????????????? | | ??#" % ""#?????????????????????????????? | | ??# % " #?????????????????????????????? | | ??# % % #?????????????????????????????? | | ??# %%%% #?????????????????????????????? | | ### % % % ############################### | | | | | | | | % | +----------------------------------------------------+ Best States ------------- Heat Dissipation 90 Coolant Potential 65 Energy Generation 15 Energy Capacity 250 Matter Stores 300 Matter Capacity 300 Sight Range 16 Robot Scan Range 15 Terrain Scan Range 20 Terrain Scan Density 410 ECM Strength 2 Armor Coverage 300 Phase Shifting 5 Evasion (%) 69 Recoil Reduction 2 Offensive Hacking 45 Authchip Count 2 Item Schematics ----------------- Huge Storage Unit | -10/Materials | Hacked Hcp. Storage Unit | -10/Materials | Hacked Imp. Carbon-fiber Leg | -7/Zion | Archive Matter Compressor | -7/Zion | Archive Gauss Rifle | -7/Zion | Archive Energy Well | -7/Zion | Archive Xenon Bombardment Thruster | -7/Zion | Archive Imp. Thermal Generator | -7/Zion | Archive Imp. EM Pulse Cannon | -7/Zion | Archive Adv. Plasma Cannon | -7/Zion | Archive KE Penetrator | -7/Zion | Archive Great Axe | -7/Zion | Archive IFF Parser | -7/Zion | Archive EM Shield | -7/Zion | Archive Flak Gun | -7/Zion | Archive Imp. Shield Generator | -7/Zion | Archive Adv. Terrain Scanner | -7/Zion | Archive Tiamat Missile Launcher | -7/Zion | Archive Combat Drone Bay | -6/Data Miner | Free Enh. Flexi-carbon Leg | -6/Data Miner | Free Imp. Matter Compressor | -6/Data Miner | Free Lgt. Regenerative Plating | -6/Data Miner | Free Hvy. Gatling Laser | -6/Data Miner | Free Centrium Wheel | -6/Data Miner | Free Nanoactuators | -6/Data Miner | Free Micro-nuke Launcher | -6/Data Miner | Free Robot Schematics ------------------ H-55 Commando | -7/Zion | Archive M-14 Sweeper | -7/Zion | Archive A-02 Transporter | -7/Zion | Archive B-48 Gladiator | -6/Data Miner | Free L-41 Fighter | -6/Data Miner | Free A-15 Conveyor | -6/Data Miner | Free R-10 Processor | -6/Data Miner | Free Fabricated ------------ Quantum Capacitor | x2 | -7/Factory | Preloaded Xenon Bombardment Thruster | x2 | -6/Factory | Authchip Repaired ---------- Exp. Sensor Array | 62% | -7/Factory Studied --------- Hvy. Assault Rifle | -8/Materials | Hacked Lgt. Treads | -8/Materials | Hacked Lgt. Nuclear Core | -8/Materials | Hacked Xenon Bombardment Thruster | -7/Factory | Hacked Alien Tech Used ----------------- None Achievements -------------- Collector Official Business Challenges ------------ None Game ------ Seed ConcussiveHellfireSword Manual? 0 Play Time 01:26:48 Cumulative 232.7 hours Start 2026.01.27 @ 22:05:54 End 2026.01.28 @ 11:46:57 Sessions 7 Manual Loads 0 Difficulty Rogue Special Mode None Game No. 317 Rogue 317 Adventurer 0 Explorer 0 Win Type - Total 3 Types 2/0/0/1/0/0/0/0/0/0 Lore% 75 Gallery% 75 Achievement% 52 Wizard Run 0 Options --------- Layout 0 ASCII 0 Keyboard 0 Movement Mouse Keybinds 0 Fullscreen 1 Font 16/SmallcapsGlow Map View 75x55 Zoom Use 0% Tactical HUD 1 Map Filters NONE Filters NONE Steam 1 RUN: 4f5a2e66-b0b7-4663-8814-afdee42f1782